fUSD/lending_fUSD_20240613
["ID","MTS","AMOUNT","RATE_DAILY","PERIOD"]
[329317117,1718241045155,-648.88655349,0.00019178,2]
[329317119,1718241045166,-500.0,0.00019178,2]
[329317120,1718241045197,-500.0,0.00019178,2]
[329317122,1718241045213,-500.0,0.00019178,2]
[329317124,1718241045230,-500.0,0.00019178,2]
[329317126,1718241045257,-500.0,0.00019178,2]
[329317128,1718241045282,-500.0,0.00019178,2]
[329317130,1718241045297,-500.0,0.00019178,2]
[329317132,1718241045321,-308.45840707,0.00019178,2]
[329317133,1718241045333,-500.0,0.00019178,2]
[329317135,1718241045345,-500.0,0.00019178,2]
[329317137,1718241045357,-500.0,0.00019178,2]
[329317138,1718241045381,-500.0,0.00019178,2]
[329317141,1718241045417,-500.0,0.00019178,2]
[329317143,1718241045428,-500.0,0.00019178,2]
[329317145,1718241045440,-500.0,0.00019178,2]
[329317147,1718241045456,-500.0,0.00019178,2]
[329317149,1718241045471,-278.03721587,0.00019178,2]
[329317150,1718241045483,-500.0,0.00019178,2]
[329317152,1718241045500,-500.0,0.00019178,2]
[329317153,1718241045511,-500.0,0.00019178,2]
[329317156,1718241045535,-500.0,0.00019178,2]
[329317158,1718241045549,-500.0,0.00019178,2]
[329317159,1718241045564,-500.0,0.00019178,2]
[329317162,1718241045582,-500.0,0.00019178,2]
[329317164,1718241045606,-500.0,0.00019178,2]
[329317166,1718241045620,-500.0,0.00019178,2]
[329317168,1718241045636,-500.0,0.00019178,2]
[329317170,1718241045652,-500.0,0.00019178,2]
[329317172,1718241045667,-500.0,0.00019178,2]
[329317174,1718241045681,-500.0,0.00019178,2]
[329317176,1718241045698,-500.0,0.00019178,2]
[329317178,1718241045720,-500.0,0.00019178,2]
[329317180,1718241045741,-500.0,0.00019178,2]
[329317182,1718241045759,-500.0,0.00019178,2]
[329317184,1718241045775,-500.0,0.00019178,2]
[329317186,1718241045786,-500.0,0.00019178,2]
[329317188,1718241045800,-500.0,0.00019178,2]
[329317190,1718241045817,-500.0,0.00019178,2]
[329317192,1718241045832,-500.0,0.00019178,2]
[329317194,1718241045843,-500.0,0.00019178,2]
[329317195,1718241045854,-500.0,0.00019178,2]
[329317197,1718241045864,-500.0,0.00019178,2]
[329317199,1718241045876,-500.0,0.00019178,2]
[329317201,1718241045888,-500.0,0.00019178,2]
[329317203,1718241045898,-500.0,0.00019178,2]
[329317205,1718241045912,-500.0,0.00019178,2]
[329317217,1718241045923,-500.0,0.00019178,2]
[329317219,1718241046087,-500.0,0.00019178,2]
[329317221,1718241046098,-500.0,0.00019178,2]
[329317222,1718241046110,-500.0,0.00019178,2]
[329317224,1718241046121,-500.0,0.00019178,2]
[329317226,1718241046144,-500.0,0.00019178,2]
[329317228,1718241046155,-500.0,0.00019178,2]
[329317229,1718241046165,-500.0,0.00019178,2]
[329317231,1718241046181,-500.0,0.00019178,2]
[329317233,1718241046203,-500.0,0.00019178,2]
[329317235,1718241046218,-500.0,0.00019178,2]
[329317237,1718241046230,-400.0,0.00019178,2]
[329317239,1718241046240,-500.0,0.00019178,2]
[329317241,1718241046251,-500.0,0.00019178,2]
[329317243,1718241046261,-500.0,0.00019178,2]
[329317245,1718241046273,-500.0,0.00019178,2]
[329317246,1718241046283,-500.0,0.00019178,2]
[329317248,1718241046294,-500.0,0.00019178,2]
[329317250,1718241046304,-500.0,0.00019178,2]
[329317252,1718241046316,-500.0,0.00019178,2]
[329317254,1718241046326,-345.0275536,0.00019178,2]
[329317267,1718241046501,-154.9724464,0.00019178,2]
[329317269,1718241046515,-500.0,0.00019178,2]
[329317271,1718241046526,-500.0,0.00019178,2]
[329317272,1718241046537,-500.0,0.00019178,2]
[329317274,1718241046549,-190.0,0.00019178,2]
[329317276,1718241046562,-500.0,0.00019178,2]
[329317278,1718241046576,-500.0,0.00019178,2]
[329317280,1718241046588,-500.0,0.00019178,2]
[329317282,1718241046600,-330.19794587,0.00019178,2]
[329317284,1718241046614,-119.16102971,0.00019178,2]
[329317286,1718241046626,-458.24934624,0.00019178,2]
[329317288,1718241046638,-250.0,0.00019281,2]
[329317290,1718241046648,-793.24,0.00019342,2]
[329317292,1718241046660,-1711.37,0.00019416,2]
[329317293,1718241046673,-184.73,0.00019453,2]
[329317295,1718241046685,-150.0,0.00019475,2]
[329317297,1718241046697,-783.82509376,0.00019484,2]
[329317346,1718241047470,-7200.09123831,0.00019484,2]
[329317360,1718241047679,-1777.31,0.00019484,2]
[329318932,1718242232684,-312.0163237,0.00016341,2]
[329318933,1718242232695,-172.76,0.00016342,2]
[329318934,1718242232707,-210.58415579,0.00017058,2]
[329318935,1718242232721,-284.01952051,0.00017158,2]
[329318936,1718242232994,-15.98047949,0.00017158,2]
[329318937,1718242233011,-1643.57964412,0.00017259,2]
[329318938,1718242233028,-365.35520824,0.00017259,2]
[329318939,1718242233065,-2354.04086362,0.00017807,2]
[329318940,1718242233081,-2452.28988398,0.00017808,2]
[329318941,1718242233110,-405.00011602,0.00017808,2]
[329318942,1718242233128,-354.88,0.00018482,2]
[329318943,1718242233148,-2826.29,0.00018598,2]
[329318944,1718242233167,-362.77,0.00019452,2]
[329318945,1718242233190,-155.0,0.00019484,2]
[329318946,1718242233208,-1016.08608751,0.00019484,2]
[329318947,1718242233224,-2044.67350924,0.00019484,2]
[329318948,1718242233240,-1150.56236,0.00019484,2]
[329318949,1718242233260,-1318.75116896,0.00019484,2]
[329318950,1718242233276,-1356.45354481,0.00019582,2]
[329318951,1718242233365,-2184.26646072,0.00019582,2]
[329318952,1718242233561,-1891.95350454,0.00019582,2]
[329318956,1718242239283,-500.32648993,0.00019582,2]
[329318957,1718242239295,-1012.07770229,0.0002,2]
[329318958,1718242239320,-226.74152349,0.000201,2]
[329318959,1718242239344,-250.0,0.00020287,2]
[329318960,1718242239364,-170.0,0.00020383,2]
[329318961,1718242239398,-838.8,0.00020394,2]
[329318962,1718242239431,-396.62,0.0002041,2]
[329318963,1718242239449,-200.0,0.00020428,2]
[329318964,1718242239465,-500.0,0.00020513,2]
[329318965,1718242239485,-164.64,0.00020528,2]
[329318966,1718242239517,-250.0,0.00020542,2]
[329318967,1718242239570,-22603.04,0.00020586,2]
[329318968,1718242239600,-166.0,0.0002061,2]
[329318969,1718242239614,-354.88,0.00020746,2]
[329318970,1718242239631,-944.0,0.00020807,2]
[329318971,1718242239652,-1250.0,0.00021,2]
[329318972,1718242239664,-29933.037,0.00021148,2]
[329318973,1718242239679,-300.0,0.00021915,2]
[329318974,1718242239694,-164.93,0.00021918,2]
[329318975,1718242239715,-250.0,0.00021918,2]
[329318976,1718242239741,-174.36,0.00022514,2]
[329318977,1718242239760,-1300.0,0.00023,2]
[329318978,1718242239815,-354.88,0.00023009,2]
[329318979,1718242239850,-838.8,0.00023133,2]
[329318980,1718242239862,-184.73,0.00023247,2]
[329318981,1718242239879,-300.0,0.00023284,2]
[329318982,1718242239923,-243.0,0.0002335,2]
[329318983,1718242239938,-166.13,0.00023354,2]
[329318984,1718242239966,-944.0,0.00023407,2]
[329318985,1718242239981,-815.2989774,0.00023502,2]
[329318986,1718242239993,-170.0,0.00023781,2]
[329318987,1718242240025,-941.71609685,0.000238,2]
[329318988,1718242240044,-4298.53737647,0.000239,2]
[329318989,1718242240232,-12651.2385343,0.000239,2]
[329319023,1718242241702,-644.94108674,0.000239,2]
[329319025,1718242241724,-47828.63406448,0.000239,2]
[329319028,1718242241750,-4254.11158289,0.000239,2]
[329319038,1718242241942,-5038.33798388,0.000239,2]
[329319063,1718242242381,-49780.43770584,0.000239,2]
[329319107,1718242243247,-10758.6429654,0.000239,2]
[329319109,1718242243268,-597.39519511,0.000239,2]
[329319110,1718242243285,-500.0,0.00023999,2]
[329319112,1718242243301,-423.16204523,0.00023999,2]
[329319114,1718242243318,-183.20961706,0.00023999,2]
[329319115,1718242243334,-500.0,0.00023999,2]
[329319117,1718242243353,-500.0,0.00023999,2]
[329319121,1718242243390,-500.0,0.00023999,2]
[329319123,1718242243415,-500.0,0.00023999,2]
[329319125,1718242243433,-489.73069404,0.00023999,2]
[329319149,1718242243887,-483.66795333,0.00019484,2]
[329319151,1718242243901,-2917.84012743,0.00019484,2]
[329319152,1718242243924,-2926.68162583,0.00019484,2]
[329319168,1718242244193,-51660.12068592,0.00019484,2]
[329319171,1718242244215,-10.26930596,0.00023999,2]
[329319173,1718242244238,-500.0,0.00023999,2]
[329319174,1718242244252,-500.0,0.00023999,2]
[329319176,1718242244264,-500.0,0.00023999,2]
[329319178,1718242244279,-500.0,0.00023999,2]
[329319180,1718242244296,-500.0,0.00023999,2]
[329319182,1718242244311,-500.0,0.00023999,2]
[329319184,1718242244322,-500.0,0.00023999,2]
[329319186,1718242244335,-500.0,0.00023999,2]
[329319189,1718242244349,-500.0,0.00023999,2]
[329319190,1718242244365,-500.0,0.00023999,2]
[329319192,1718242244392,-500.0,0.00023999,2]
[329319194,1718242244409,-500.0,0.00023999,2]
[329319196,1718242244426,-500.0,0.00023999,2]
[329319198,1718242244440,-500.0,0.00023999,2]
[329319200,1718242244462,-500.0,0.00023999,2]
[329319203,1718242244482,-500.0,0.00023999,2]
[329319205,1718242244494,-500.0,0.00023999,2]
[329319206,1718242244510,-500.0,0.00023999,2]
[329319208,1718242244523,-500.0,0.00023999,2]
[329319210,1718242244535,-500.0,0.00023999,2]
[329319212,1718242244547,-500.0,0.00023999,2]
[329319215,1718242244590,-500.0,0.00023999,2]
[329319217,1718242244608,-377.24883288,0.00023999,2]
[329319218,1718242244631,-500.0,0.00023999,2]
[329319220,1718242244645,-500.0,0.00023999,2]
[329319222,1718242244659,-500.0,0.00023999,2]
[329319224,1718242244683,-500.0,0.00023999,2]
[329319226,1718242244705,-500.0,0.00023999,2]
[329319228,1718242244719,-500.0,0.00023999,2]
[329319230,1718242244733,-500.0,0.00023999,2]
[329319232,1718242244748,-500.0,0.00023999,2]
[329319234,1718242244766,-500.0,0.00023999,2]
[329319236,1718242244781,-500.0,0.00023999,2]
[329319238,1718242244824,-500.0,0.00023999,2]
[329319240,1718242244838,-500.0,0.00023999,2]
[329319242,1718242244851,-500.0,0.00023999,2]
[329319244,1718242244863,-500.0,0.00023999,2]
[329319246,1718242244875,-500.0,0.00023999,2]
[329319248,1718242244899,-500.0,0.00023999,2]
[329319251,1718242244923,-500.0,0.00023999,2]
[329319253,1718242244936,-500.0,0.00023999,2]
[329319255,1718242244954,-500.0,0.00023999,2]
[329319256,1718242244970,-500.0,0.00023999,2]
[329319259,1718242244987,-500.0,0.00023999,2]
[329319261,1718242245012,-500.0,0.00023999,2]
[329319263,1718242245026,-500.0,0.00023999,2]
[329319264,1718242245042,-500.0,0.00023999,2]
[329319267,1718242245067,-500.0,0.00023999,2]
[329319269,1718242245088,-500.0,0.00023999,2]
[329319271,1718242245107,-450.0,0.00023999,2]
[329319273,1718242245121,-500.0,0.00023999,2]
[329319275,1718242245141,-500.0,0.00023999,2]
[329319276,1718242245154,-500.0,0.00023999,2]
[329319278,1718242245166,-500.0,0.00023999,2]
[329319280,1718242245178,-500.0,0.00023999,2]
[329319282,1718242245190,-500.0,0.00023999,2]
[329319284,1718242245202,-500.0,0.00023999,2]
[329319286,1718242245214,-500.0,0.00023999,2]
[329319288,1718242245226,-500.0,0.00023999,2]
[329319290,1718242245239,-500.0,0.00023999,2]
[329319292,1718242245250,-500.0,0.00023999,2]
[329319294,1718242245264,-500.0,0.00023999,2]
[329319296,1718242245284,-500.0,0.00023999,2]
[329319298,1718242245300,-500.0,0.00023999,2]
[329319300,1718242245316,-500.0,0.00023999,2]
[329319302,1718242245328,-500.0,0.00023999,2]
[329319303,1718242245339,-500.0,0.00023999,2]
[329319305,1718242245350,-500.0,0.00023999,2]
[329319307,1718242245363,-500.0,0.00023999,2]
[329319309,1718242245376,-500.0,0.00023999,2]
[329319311,1718242245393,-500.0,0.00023999,2]
[329319313,1718242245406,-450.23349428,0.00023999,2]
[329319315,1718242245422,-500.0,0.00023999,2]
[329319317,1718242245444,-500.0,0.00023999,2]
[329319319,1718242245465,-308.45840707,0.00023999,2]
[329319321,1718242245489,-500.0,0.00023999,2]
[329319322,1718242245509,-500.0,0.00023999,2]
[329319324,1718242245530,-500.0,0.00023999,2]
[329319326,1718242245545,-500.0,0.00023999,2]
[329319328,1718242245560,-500.0,0.00023999,2]
[329319330,1718242245575,-200.0,0.00023999,2]
[329319331,1718242245590,-500.0,0.00023999,2]
[329319332,1718242245604,-648.88655349,0.00023999,2]
[329319334,1718242245619,-500.0,0.00023999,2]
[329319336,1718242245634,-417.02456567,0.00023999,2]
[329319338,1718242245645,-500.0,0.00023999,2]
[329319340,1718242245660,-500.0,0.00023999,2]
[329319342,1718242245684,-500.0,0.00023999,2]
[329319344,1718242245697,-500.0,0.00023999,2]
[329319346,1718242245718,-500.0,0.00023999,2]
[329319348,1718242245733,-500.0,0.00023999,2]
[329319350,1718242245748,-500.0,0.00023999,2]
[329319352,1718242245764,-635.00733384,0.00023999,2]
[329319354,1718242245789,-500.0,0.00023999,2]
[329319356,1718242245802,-500.0,0.00023999,2]
[329319358,1718242245836,-500.0,0.00023999,2]
[329319359,1718242245848,-306.97175227,0.00023999,2]
[329319361,1718242245861,-500.0,0.00023999,2]
[329319363,1718242245875,-500.0,0.00023999,2]
[329319366,1718242245901,-110664.51816965,0.00024,3]
[329319368,1718242245914,-2829.2382063,0.00024,10]
[329319370,1718242245926,-2648.52059109,0.00024,2]
[329319372,1718242245943,-220.77893921,0.00024069,2]
[329319374,1718242245961,-500.0,0.00024109,2]
[329319376,1718242245987,-500.0,0.00024109,2]
[329319379,1718242246006,-500.0,0.00024109,2]
[329319380,1718242246022,-500.0,0.00024109,2]
[329319383,1718242246039,-500.0,0.00024109,2]
[329319385,1718242246053,-403.0511592,0.00024109,2]
[329319387,1718242246069,-220.77893921,0.00024166,2]
[329319389,1718242246089,-158.05521497,0.00024216,2]
[329319391,1718242246105,-180.0,0.0002423,2]
[329319393,1718242246133,-941.71609683,0.0002425,2]
[329319395,1718242246161,-243.0,0.0002428,2]
[329319397,1718242246173,-220.77893921,0.00024296,2]
[329319406,1718242246344,-150.78181346,0.00024323,2]
[329319408,1718242246363,-150.4868812,0.00024347,2]
[329319410,1718242246377,-220.77893921,0.00024373,2]
[329319412,1718242246396,-160.83159706,0.00024375,2]
[329319414,1718242246409,-259.28,0.00024384,2]
[329319416,1718242246422,-164.0,0.00024384,2]
[329319418,1718242246440,-164.67,0.00024384,2]
[329319420,1718242246452,-294.97,0.00024384,2]
[329319422,1718242246463,-220.77893921,0.00024405,2]
[329319424,1718242246483,-1150.56236,0.00024484,2]
[329319426,1718242246494,-220.77893921,0.00024484,2]
[329319428,1718242246511,-158.05521497,0.00024556,2]
[329319430,1718242246527,-220.77893921,0.00024561,2]
[329319432,1718242246541,-150.4868812,0.00024592,2]
[329319434,1718242246554,-1000.0,0.000246,2]
[329319436,1718242246566,-158.05521497,0.00024644,2]
[329319438,1718242246577,-941.71609683,0.00024699,2]
[329319439,1718242246595,-150.78181346,0.00024701,2]
[329319441,1718242246610,-597.39519505,0.00024757,2]
[329319443,1718242246625,-3764.6056971,0.00024799,2]
[329319445,1718242246642,-3764.60569705,0.00024799,2]
[329319447,1718242246657,-164.39671987,0.00024858,2]
[329319450,1718242246673,-150.78181346,0.00024881,2]
[329319453,1718242246685,-220.77893921,0.00024925,2]
[329319454,1718242246701,-153.16583406,0.00024988,2]
[329319456,1718242246718,-205.26400552,0.00024999,2]
[329319458,1718242246734,-833.6,0.00025,2]
[329319460,1718242246748,-1350.0,0.00025,2]
[329319462,1718242246761,-706.94373209,0.00025,2]
[329319464,1718242246780,-1277.7583517,0.00025,2]
[329319467,1718242246833,-1000.0,0.00025,2]
[329319469,1718242246850,-53686.04183716,0.00025,2]
[329319487,1718242247081,-194.73802788,0.0002499,2]
[329319488,1718242247092,-43866.7929058,0.00025,2]
[329319490,1718242247105,-657.20092064,0.00025,2]
[329319531,1718242247734,-1011.6724071,0.00025,2]
[329319569,1718242248192,-3411.05764999,0.00025,2]
[329320822,1718242424747,137319.21242806,0.00014,2]
[329320823,1718242634785,194.2706553,0.0002736,120]
[329320854,1718243433433,-155.0,0.00014899,2]
[329320855,1718243433448,-178.714085,0.000149,2]
[329320856,1718243433462,-259.39963079,0.000149,2]
[329320857,1718243433475,-150.72,0.0001499,2]
[329320858,1718243433489,-150.72,0.0001499,2]
[329320859,1718243433504,-150.72,0.0001499,2]
[329320860,1718243433518,-300.0,0.00014999,2]
[329320861,1718243433535,-2319.67787113,0.00015,2]
[329320862,1718243433862,-4943.83845254,0.00015,2]
[329320868,1718243443622,-4315.19764169,0.00014898,2]
[329320869,1718243443637,-27977.25285332,0.00015,2]
[329320870,1718243443652,-33666.51785638,0.00015,2]
[329320871,1718243443902,-18579.65968483,0.00015,2]
[329320873,1718243444285,-2989.83439993,0.00015,2]
[329320943,1718243445218,-5984.27800001,0.00015,2]
[329320944,1718243445233,-43866.7929058,0.00015,2]
[329321131,1718243447561,-340.655,0.00015,2]
[329322384,1718243510271,455.10281644,0.00013346,2]
[329322386,1718243512525,266.6826444,0.00013497,2]
[329322387,1718243513951,157.09089731,0.00013496,2]
[329322393,1718243538653,155.0,0.00013496,2]
[329322394,1718243540202,155.5692436,0.00013496,2]
[329322397,1718243547292,180.76997474,0.00013496,2]
[329322398,1718243551965,299.86157995,0.00013496,2]
[329322399,1718243552656,157.81981447,0.00013496,2]
[329322402,1718243561213,181.45556879,0.00013496,2]
[329322406,1718243571917,300.80217792,0.00013496,2]
[329322464,1718244028047,347.92,0.00012955,2]
[329322515,1718244435360,230.517188,0.00013951,2]
[329322524,1718244632331,330.52,0.00012252,2]
[329322533,1718244632952,-155.0,0.00014009,2]
[329322534,1718244632963,-364.29742145,0.0001401,2]
[329322535,1718244632975,-429.97845481,0.00014011,2]
[329322536,1718244632987,-3020.7930423,0.00014012,2]
[329322537,1718244633001,-150.0,0.00014015,2]
[329322538,1718244633013,-150.0,0.00014015,2]
[329322539,1718244633024,-300.0,0.00014015,2]
[329322540,1718244633035,-534.44423589,0.00014021,2]
[329322541,1718244633047,-717.6754755,0.00014111,2]
[329322542,1718244633060,-282.3245245,0.00014111,2]
[329322543,1718244633070,-250.0,0.00014308,2]
[329322544,1718244633082,-644.56825444,0.00014342,2]
[329322545,1718244633092,-494.27837546,0.00014344,2]
[329322546,1718244633105,-14066.42892057,0.00014344,2]
[329322547,1718244633159,-7343.88972904,0.00014344,2]
[329322548,1718244633172,-679.785,0.00014344,2]
[329322549,1718244633188,-496.346633,0.00014344,2]
[329322550,1718244633205,-183.83134193,0.00014344,2]
[329322551,1718244633218,-200.0,0.00014473,2]
[329322552,1718244633235,-346.52402062,0.00014476,2]
[329322553,1718244633388,-167.96597938,0.00014476,2]
[329322554,1718244633401,-96.41060486,0.00014516,2]
[329322555,1718244633444,-234.10939514,0.00014516,2]
[329322556,1718244633455,-254.34173493,0.00014847,2]
[329322557,1718244633466,-192.11366747,0.0001485,2]
[329322558,1718244633479,-1146.22823334,0.0001485,2]
[329322559,1718244633494,-747.80959952,0.0001485,2]
[329322560,1718244633507,-562.43544538,0.0001485,2]
[329322561,1718244633520,-1094.89027509,0.0001485,2]
[329322562,1718244633588,-9012.57169683,0.0001485,2]
[329322563,1718244633603,-3005.13419708,0.000149,2]
[329322564,1718244633615,-339.0858,0.000149,2]
[329322565,1718244633627,-178.71408499,0.000149,2]
[329322566,1718244633638,-183.42,0.000149,2]
[329322567,1718244633649,-672.93174564,0.000149,2]
[329322568,1718244633661,-1004.45916304,0.00014921,2]
[329322569,1718244633680,-7786.41431121,0.00014922,2]
[329322570,1718244633698,-247.74385174,0.0001499,2]
[329322571,1718244633717,-150.76,0.0001499,2]
[329322572,1718244633730,-150.76,0.0001499,2]
[329322573,1718244633743,-150.76,0.0001499,2]
[329322574,1718244633759,-150.76,0.0001499,2]
[329322575,1718244633775,-150.76,0.0001499,2]
[329322576,1718244633792,-156.31673197,0.00014996,2]
[329322577,1718244633806,-1637.14531404,0.00014997,2]
[329322578,1718244633826,-155.90464233,0.00014997,2]
[329322579,1718244633853,-3070.34261384,0.00014997,2]
[329322580,1718244633881,-373.90692997,0.00014997,2]
[329322581,1718244633908,-155.82335723,0.00014997,2]
[329322582,1718244633931,-336.37811353,0.00014997,2]
[329322583,1718244633960,-677.10586659,0.00014997,2]
[329322584,1718244633974,-692.76935691,0.00014997,2]
[329322585,1718244633987,-155.80313736,0.00014997,2]
[329322586,1718244634008,-485.00449293,0.00014997,2]
[329322587,1718244634023,-162.78155514,0.00014997,2]
[329322588,1718244634034,-439.35667345,0.00014997,2]
[329322589,1718244634046,-2829.57686944,0.00014997,2]
[329322590,1718244634065,-210.75713335,0.00014997,2]
[329322591,1718244634076,-528.65391997,0.00014997,2]
[329322592,1718244634090,-155.58939403,0.00014997,2]
[329322593,1718244634103,-1496.24257308,0.00014997,2]
[329322596,1718244634123,-4473.10591012,0.00014997,2]
[329322598,1718244634141,-8445.1298957,0.00014998,2]
[329322600,1718244634152,-11010.98712609,0.00014999,2]
[329322602,1718244634162,-2200.60500911,0.00014999,2]
[329322603,1718244634174,-230896.47203977,0.00015,2]
[329322604,1718244634188,-18161.8967343,0.00015,2]
[329322605,1718244634203,-29560.56631577,0.00015,2]
[329322606,1718244634216,-114459.77845642,0.00015,2]
[329322607,1718244634230,-24432.14589492,0.00015,2]
[329322608,1718244634247,-1088.42612992,0.00015,2]
[329322609,1718244634275,-324712.22826129,0.00015,2]
[329322610,1718244634289,-14891.42473928,0.00015,2]
[329322611,1718244634304,-18570.756,0.00015,2]
[329322612,1718244634318,-13037.42092,0.00015,2]
[329322613,1718244634332,-6592.7144032,0.00015,2]
[329322614,1718244634345,-16477.43359206,0.00015,2]
[329322615,1718244634357,-4265.1967325,0.00015,2]
[329322616,1718244634375,-432194.98873561,0.00015,2]
[329322617,1718244634389,-5047.05820462,0.00015,2]
[329322618,1718244634416,-5138.94172992,0.00015,2]
[329322619,1718244634438,-241076.28058173,0.00015,2]
[329322620,1718244634457,-819.43778,0.00015,2]
[329322621,1718244634469,-200.0,0.00015044,2]
[329322622,1718244634484,-198.31,0.00015156,2]
[329322623,1718244634497,-15677.62133367,0.000154,2]
[329322624,1718244634508,-210.0,0.00015417,2]
[329322625,1718244634519,-210.0,0.00015417,2]
[329322626,1718244634529,-910.15700608,0.00015875,2]
[329322627,1718244634549,-89.84299392,0.00015875,2]
[329322628,1718244634560,-3005.13419705,0.00016264,2]
[329322629,1718244634571,-167.75,0.00016374,2]
[329322630,1718244634582,-1813.00312502,0.000165,2]
[329322631,1718244634593,-179.66,0.00016712,2]
[329322632,1718244634604,-330.52,0.0001678,2]
[329322633,1718244634614,-293.0,0.00016958,2]
[329322634,1718244634633,-167.75,0.00017049,2]
[329322635,1718244634651,-514.49,0.00017216,2]
[329322636,1718244634662,-3005.13419705,0.00017627,2]
[329322637,1718244634679,-1000.0,0.00017639,2]
[329322638,1718244634694,-167.75,0.00017725,2]
[329322639,1718244634707,-167.75,0.000184,2]
[329322640,1718244634724,-3005.13419705,0.00018991,2]
[329322641,1718244634735,-413.38414389,0.00019,2]
[329322642,1718244634747,-155.45797174,0.00019,2]
[329322643,1718244634757,-330.52,0.00019044,2]
[329322644,1718244634767,-523.0,0.00019046,2]
[329322645,1718244634778,-167.75,0.00019076,2]
[329322646,1718244634789,-500.0,0.00019178,2]
[329322647,1718244634801,-500.0,0.00019178,2]
[329322648,1718244634813,-500.0,0.00019178,2]
[329322649,1718244634826,-500.0,0.00019178,2]
[329322650,1718244634837,-500.0,0.00019178,2]
[329322651,1718244634848,-500.0,0.00019178,2]
[329322652,1718244634858,-474.76653786,0.00019178,2]
[329322653,1718244634870,-500.0,0.00019178,2]
[329322654,1718244634881,-500.0,0.00019178,2]
[329322655,1718244634892,-1000.0,0.00019403,2]
[329322656,1718244634903,-514.49,0.00019956,2]
[329322657,1718244634914,-813.60895852,0.0002,2]
[329322658,1718244634930,-292.1864247,0.0002,2]
[329322659,1718244634947,-3439.78804131,0.0002,2]
[329322660,1718244634959,-1012.26772526,0.0002,2]
[329322661,1718244634970,-155.45464275,0.0002,2]
[329322662,1718244634981,-188.27702398,0.0002,2]
[329322663,1718244634991,-553.09528777,0.0002,2]
[329322664,1718244635002,-6267.29487457,0.0002,2]
[329322665,1718244635012,-155.51819464,0.0002,2]
[329322666,1718244635023,-1787.22781676,0.0002,2]
[329322667,1718244635045,-3896.31762119,0.0002,2]
[329322668,1718244635057,-155.78264989,0.0002,2]
[329322669,1718244635069,-282.938432,0.0002,2]
[329322670,1718244635081,-282.938432,0.0002,2]
[329322671,1718244635095,-490.22689077,0.0002,2]
[329322672,1718244635106,-819.43778,0.0002,2]
[329322673,1718244635118,-151.0,0.0002,2]
[329322674,1718244635130,-155.24163423,0.0002,4]
[329322675,1718244635142,-226.76270483,0.000201,2]
[329322676,1718244635153,-3005.13419705,0.00020355,2]
[329322677,1718244635165,-3711.12715968,0.000207,2]
[329322678,1718244635180,-934.21343224,0.000207,2]
[329322679,1718244635335,-10543.45367167,0.00014011,2]
[329322680,1718244635347,-1662.24290611,0.000207,2]
[329322691,1718244638904,-302.52178472,0.0001401,2]
[329322692,1718244639156,-1422.85642621,0.0001401,2]
[329322693,1718244639178,-334.31721622,0.0001401,2]
[329322694,1718244639442,-714.52341841,0.0001401,2]
[329322695,1718244639469,-614.35004611,0.0001401,2]
[329322696,1718244639509,-1424.67571252,0.000207,2]
[329322697,1718244639722,-1168.29304805,0.000207,2]
[329322698,1718244639759,-703.63905553,0.000207,2]
[329322699,1718244639776,-3121.61111413,0.000207,2]
[329322700,1718244640074,-528.10316554,0.000207,2]
[329322701,1718244640091,-782.05506422,0.000207,2]